fUST/lending_fUST_20240118
["ID","MTS","AMOUNT","RATE_DAILY","PERIOD"]
[311937677,1705510274967,-500.0,0.00021917,2]
[311937679,1705510274990,-658.74,0.00021917,2]
[311937681,1705510275007,-500.0,0.00021917,2]
[311937683,1705510275039,-500.0,0.00021917,2]
[311937685,1705510275061,-500.0,0.00021917,2]
[311937687,1705510275102,-500.0,0.00021917,2]
[311937689,1705510275115,-500.0,0.00021917,2]
[311937691,1705510275153,-500.0,0.00021917,2]
[311937693,1705510275177,-882.04,0.00021917,2]
[311937695,1705510275197,-500.0,0.00021917,2]
[311937697,1705510275231,-500.0,0.00021917,2]
[311937699,1705510275259,-500.0,0.00021917,2]
[311937701,1705510275292,-1536.48,0.00021917,2]
[311937703,1705510275319,-539.08,0.00021917,2]
[311937705,1705510275344,-500.0,0.00021917,2]
[311937707,1705510275370,-500.0,0.00021917,2]
[311937709,1705510275396,-236.06186457,0.00021917,2]
[311937711,1705510275418,-566.28,0.00021917,2]
[311937713,1705510275456,-500.0,0.00021917,2]
[311937716,1705510275498,-500.0,0.00021917,2]
[311937718,1705510275524,-500.0,0.00021917,2]
[311937720,1705510275545,-500.0,0.00021917,2]
[311937722,1705510275590,-500.0,0.00021917,2]
[311937724,1705510275616,-500.0,0.00021917,2]
[311937727,1705510275642,-500.0,0.00021917,2]
[311937729,1705510275674,-500.0,0.00021917,2]
[311937730,1705510275690,-201.40168416,0.00021917,2]
[311937733,1705510275712,-500.0,0.00021917,2]
[311937735,1705510275744,-500.0,0.00021917,2]
[311937737,1705510275772,-522.0123093,0.00021917,2]
[311937739,1705510275794,-500.0,0.00021917,2]
[311937740,1705510275806,-500.0,0.00021917,2]
[311937742,1705510275849,-500.69934693,0.00021917,2]
[311937745,1705510275892,-500.0,0.00021917,2]
[311937746,1705510275911,-500.0,0.00021917,2]
[311937748,1705510275932,-500.0,0.00021917,2]
[311937750,1705510275956,-500.0,0.00021917,2]
[311937752,1705510275979,-500.0,0.00021917,2]
[311937754,1705510276002,-1030.74,0.00021917,2]
[311937756,1705510276024,-500.0,0.00021917,2]
[311937758,1705510276053,-598.60148851,0.00021917,2]
[311937760,1705510276075,-500.0,0.00021917,2]
[311937762,1705510276086,-500.0,0.00021917,2]
[311937764,1705510276128,-500.0,0.00021917,2]
[311937767,1705510276158,-500.0,0.00021917,2]
[311937769,1705510276185,-871.47,0.00021917,2]
[311937771,1705510276224,-500.0,0.00021917,2]
[311937773,1705510276247,-507.17863849,0.00021917,2]
[311937775,1705510276289,-394.73359353,0.00021917,2]
[311937777,1705510276321,-1478.22,0.00021917,2]
[311937779,1705510276350,-1153.26,0.00021917,2]
[311937781,1705510276384,-500.0,0.00021917,2]
[311937783,1705510276410,-500.0,0.00021917,5]
[311937784,1705510276433,-425.03867286,0.00021917,2]
[311937787,1705510276489,-1000.0,0.00021917,2]
[311937789,1705510276515,-500.0,0.00021917,2]
[311937791,1705510276548,-500.0,0.00021917,2]
[311937793,1705510276561,-500.0,0.00021917,2]
[311937794,1705510276589,-9398.56,0.00021917,2]
[311937797,1705510276618,-503.2282756,0.00021917,2]
[311937799,1705510276646,-500.0,0.00021917,2]
[311937801,1705510276668,-500.0,0.00021917,2]
[311937802,1705510276683,-500.0,0.00021917,2]
[311937804,1705510276697,-500.0,0.00021917,2]
[311937806,1705510276724,-500.0,0.00021917,2]
[311937808,1705510276739,-224.4532379,0.00021917,2]
[311937810,1705510276759,-705.88,0.00021917,2]
[311937812,1705510276790,-705.88,0.00021917,2]
[311937814,1705510276804,-705.88,0.00021917,2]
[311937816,1705510276840,-705.88,0.00021917,2]
[311937818,1705510276863,-705.88,0.00021917,2]
[311937820,1705510276892,-705.88,0.00021917,2]
[311937822,1705510276914,-705.88,0.00021917,2]
[311937825,1705510276948,-705.88,0.00021917,2]
[311937826,1705510276969,-500.0,0.00021917,2]
[311937828,1705510276984,-3434.58,0.00021917,2]
[311937831,1705510277018,-250.04217637,0.00021917,2]
[311937833,1705510277058,-500.0,0.00021917,2]
[311937835,1705510277069,-500.0,0.00021917,2]
[311937836,1705510277111,-500.0,0.00021917,2]
[311937838,1705510277127,-500.0,0.00021917,2]
[311937840,1705510277160,-444.00620522,0.00021917,2]
[311937842,1705510277211,-500.0,0.00021917,2]
[311937844,1705510277238,-500.0,0.00021917,2]
[311937847,1705510277266,-500.0,0.00021917,2]
[311937849,1705510277297,-500.0,0.00021917,2]
[311937850,1705510277319,-500.0,0.00021917,2]
[311937853,1705510277347,-1145.23,0.00021917,2]
[311937854,1705510277376,-508.09723892,0.00021917,2]
[311937856,1705510277401,-500.0,0.00021917,2]
[311937858,1705510277423,-166.666666,0.00021918,2]
[311937860,1705510277449,-407.40474853,0.00021937,2]
[311937863,1705510277483,-705.88,0.00021937,2]
[311937864,1705510277494,-705.88,0.00021937,2]
[311937866,1705510277535,-705.88,0.00021937,2]
[311937868,1705510277562,-94917.0513566,0.00021938,2]
[311937870,1705510277593,-99599.30548688,0.00021938,2]
[311937873,1705510277622,-81170.80131102,0.00021938,2]
[311937875,1705510277648,-8411.56059346,0.00021938,2]
[311937879,1705510277736,-500.0,0.00021944,2]
[311937880,1705510277761,-500.0,0.00021944,2]
[311937882,1705510277777,-508.19950433,0.00021944,2]
[311937884,1705510277794,-705.88,0.00021953,2]
[311937886,1705510277834,-35704.57686873,0.00021954,2]
[311937888,1705510277882,-302.53016375,0.00021964,2]
[311937891,1705510277913,-296.94631149,0.00022,2]
[311937893,1705510277945,-293.1976279,0.00022,4]
[311937895,1705510277972,-425.53656097,0.00022,2]
[311937897,1705510277998,-3955.54830897,0.00022,2]
[311937900,1705510278037,-705.88,0.00022053,2]
[311937901,1705510278062,-705.88,0.00022053,2]
[311937903,1705510278081,-303.008819,0.00022054,2]
[311937905,1705510278091,-303.008819,0.00022054,2]
[311937907,1705510278129,-500.0,0.00022054,2]
[311937909,1705510278153,-500.0,0.00022054,2]
[311937912,1705510278189,-500.0,0.00022054,2]
[311937914,1705510278201,-500.0,0.00022054,2]
[311937916,1705510278222,-500.0,0.00022054,2]
[311937917,1705510278246,-500.0,0.00022054,2]
[311937920,1705510278281,-500.0,0.00022054,2]
[311937921,1705510278299,-239.57751721,0.00022054,2]
[311937923,1705510278314,-500.0,0.00022054,2]
[311937925,1705510278332,-500.0,0.00022054,2]
[311937927,1705510278362,-500.0,0.00022054,2]
[311937929,1705510278387,-500.0,0.00022054,2]
[311937931,1705510278413,-500.0,0.00022054,2]
[311937934,1705510278448,-500.0,0.00022054,2]
[311937935,1705510278478,-500.0,0.00022054,2]
[311937937,1705510278513,-500.0,0.00022054,2]
[311937939,1705510278531,-500.0,0.00022054,2]
[311937941,1705510278541,-500.0,0.00022054,2]
[311937943,1705510278592,-500.06605491,0.00022054,2]
[311937946,1705510278640,-185.024086,0.00022054,2]
[311937947,1705510278664,-523.15,0.00022054,2]
[311937950,1705510278696,-500.0,0.00022054,2]
[311937952,1705510278734,-500.0,0.00022054,2]
[311937953,1705510278762,-500.0,0.00022054,2]
[311937955,1705510278785,-500.0,0.00022054,2]
[311937958,1705510278805,-500.0,0.00022054,2]
[311937959,1705510278837,-500.0,0.00022054,2]
[311937962,1705510278869,-500.0,0.00022054,2]
[311937964,1705510278905,-1637.76,0.00022054,2]
[311937966,1705510278924,-287.5012184,0.00022054,2]
[311937968,1705510278946,-500.0,0.00022054,2]
[311937970,1705510278967,-500.0,0.00022054,2]
[311937972,1705510278988,-1016.46,0.00022054,2]
[311937974,1705510279009,-490.92752769,0.00022054,2]
[311937976,1705510279057,-500.0,0.00022054,2]
[311937978,1705510279078,-500.0,0.00022054,2]
[311937980,1705510279103,-1663.35,0.00022054,2]
[311937982,1705510279128,-503.98676531,0.00022054,2]
[311937984,1705510279150,-500.0,0.00022054,2]
[311937986,1705510279161,-500.0,0.00022054,2]
[311937988,1705510279205,-500.85728757,0.00022054,2]
[311937990,1705510279230,-500.0,0.00022054,2]
[311937992,1705510279248,-500.0,0.00022054,2]
[311937994,1705510279285,-500.0,0.00022054,2]
[311937996,1705510279311,-500.0,0.00022054,2]
[311937998,1705510279333,-500.0,0.00022054,2]
[311938001,1705510279364,-500.0,0.00022054,2]
[311938002,1705510279387,-500.0,0.00022054,2]
[311938004,1705510279401,-500.0,0.00022054,2]
[311938006,1705510279434,-500.0,0.00022054,2]
[311938008,1705510279465,-550.0,0.00022054,2]
[311938010,1705510279478,-500.0,0.00022054,2]
[311938012,1705510279501,-500.0,0.00022054,2]
[311938014,1705510279529,-500.0,0.00022054,2]
[311938016,1705510279581,-513.30900014,0.00022054,2]
[311938018,1705510279595,-500.0,0.00022054,2]
[311938020,1705510279615,-518.29322091,0.00022054,2]
[311938022,1705510279645,-500.0,0.00022054,2]
[311938023,1705510279667,-415.79701904,0.00022054,2]
[311938025,1705510279692,-500.0,0.00022054,2]
[311938027,1705510279714,-500.0,0.00022054,2]
[311938029,1705510279736,-500.0,0.00022054,2]
[311938031,1705510279765,-500.0,0.00022054,2]
[311938033,1705510279813,-500.0,0.00022054,2]
[311938035,1705510279844,-500.0,0.00022054,2]
[311938037,1705510279870,-506.24672197,0.00022054,2]
[311938039,1705510279898,-500.0,0.00022054,2]
[311938041,1705510279927,-500.0,0.00022054,2]
[311938043,1705510279944,-819.68,0.00022054,2]
[311938045,1705510279976,-500.0,0.00022054,2]
[311938046,1705510279998,-500.0,0.00022054,2]
[311938049,1705510280016,-500.0,0.00022054,2]
[311938051,1705510280058,-500.0,0.00022054,2]
[311938052,1705510280091,-500.0,0.00022054,2]
[311938055,1705510280125,-500.0,0.00022054,2]
[311938057,1705510280149,-602.09,0.00022054,2]
[311938059,1705510280175,-500.0,0.00022054,2]
[311938060,1705510280195,-500.0,0.00022054,2]
[311938062,1705510280230,-500.0,0.00022054,2]
[311938064,1705510280260,-500.0,0.00022054,2]
[311938066,1705510280288,-500.0,0.00022054,2]
[311938068,1705510280314,-500.0,0.00022054,2]
[311938071,1705510280332,-500.0,0.00022054,2]
[311938073,1705510280350,-500.0,0.00022054,2]
[311938075,1705510280370,-500.0,0.00022054,2]
[311938077,1705510280391,-500.0,0.00022054,2]
[311938079,1705510280407,-502.59,0.00022054,2]
[311938081,1705510280426,-500.0,0.00022054,2]
[311938083,1705510280438,-500.0,0.00022054,2]
[311938085,1705510280476,-500.0,0.00022054,2]
[311938086,1705510280512,-989.28,0.00022054,2]
[311938089,1705510280539,-500.0,0.00022054,2]
[311938090,1705510280570,-500.0,0.00022054,2]
[311938092,1705510280590,-500.0,0.00022054,2]
[311938094,1705510280628,-500.0,0.00022054,2]
[311938095,1705510280662,-500.0,0.00022054,2]
[311938097,1705510280673,-500.0,0.00022054,2]
[311938099,1705510280718,-508.66142748,0.00022054,2]
[311938101,1705510280731,-348.54146823,0.00022054,2]
[311938103,1705510280783,-500.0,0.00022054,2]
[311938105,1705510280805,-500.0,0.00022054,2]
[311938107,1705510280843,-500.0,0.00022054,2]
[311938109,1705510280869,-500.0,0.00022054,2]
[311938111,1705510280898,-4861.58,0.00022054,2]
[311938112,1705510280930,-500.0,0.00022054,2]
[311938114,1705510280953,-500.0,0.00022054,2]
[311938116,1705510280975,-500.0,0.00022054,2]
[311938118,1705510281000,-500.0,0.00022054,2]
[311938120,1705510281038,-500.0,0.00022054,2]
[311938122,1705510281063,-5653.29,0.00022054,2]
[311938124,1705510281079,-500.0,0.00022054,2]
[311938126,1705510281108,-500.0,0.00022054,2]
[311938127,1705510281132,-500.0,0.00022054,2]
[311938128,1705510281148,-500.0,0.00022054,2]
[311938129,1705510281163,-500.0,0.00022054,2]
[311938130,1705510281196,-1876.56,0.00022054,2]
[311938132,1705510281216,-500.0,0.00022054,2]
[311938134,1705510281238,-456.79877671,0.00022054,2]
[311938136,1705510281255,-500.0,0.00022054,2]
[311938137,1705510281282,-500.0,0.00022054,2]
[311938139,1705510281311,-1844.14,0.00022054,2]
[311938141,1705510281338,-500.0,0.00022054,2]
[311938143,1705510281352,-500.0,0.00022054,2]
[311938145,1705510281388,-5568.62,0.00022054,2]
[311938149,1705510281472,-9521.58,0.00022054,2]
[311938151,1705510281503,-500.0,0.00022054,2]
[311938154,1705510281549,-500.0,0.00022054,2]
[311938156,1705510281575,-500.0,0.00022054,2]
[311938158,1705510281612,-200.0,0.00022054,2]
[311938160,1705510281644,-500.0,0.00022054,2]
[311938162,1705510281687,-500.0,0.00022054,2]
[311938164,1705510281711,-1101.59,0.00022054,2]
[311938166,1705510281743,-500.0,0.00022054,2]
[311938167,1705510281764,-658.74,0.00022054,2]
[311938170,1705510281797,-500.0,0.00022054,2]
[311938172,1705510281821,-500.0,0.00022054,2]
[311938174,1705510281847,-500.0,0.00022054,2]
[311938176,1705510281874,-500.0,0.00022054,2]
[311938178,1705510281901,-500.0,0.00022054,2]
[311938180,1705510281930,-882.04,0.00022054,2]
[311938182,1705510281954,-500.0,0.00022054,2]
[311938183,1705510281973,-500.0,0.00022054,2]
[311938185,1705510282010,-500.0,0.00022054,2]
[311938188,1705510282033,-1536.48,0.00022054,2]
[311938190,1705510282052,-539.08,0.00022054,2]
[311938192,1705510282086,-500.0,0.00022054,2]
[311938194,1705510282106,-500.0,0.00022054,2]
[311938195,1705510282122,-566.28,0.00022054,2]
[311938198,1705510282137,-500.0,0.00022054,2]
[311938199,1705510282155,-501.3034891,0.00022054,2]
[311938202,1705510282169,-500.0,0.00022054,2]
[311938203,1705510282184,-500.0,0.00022054,2]
[311938205,1705510282212,-500.0,0.00022054,2]
[311938207,1705510282242,-500.0,0.00022054,2]
[311938210,1705510282281,-500.0,0.00022054,2]
[311938212,1705510282311,-506.24435026,0.00022054,2]
[311938214,1705510282339,-500.0,0.00022054,2]
[311938215,1705510282369,-500.0,0.00022054,2]
[311938217,1705510282391,-601.97581751,0.00022054,2]
[311938219,1705510282417,-500.0,0.00022054,2]
[311938221,1705510282433,-500.0,0.00022054,2]
[311938223,1705510282459,-500.0,0.00022054,2]
[311938226,1705510282493,-500.0,0.00022054,2]
[311938228,1705510282521,-500.0,0.00022054,2]
[311938230,1705510282570,-1030.74,0.00022054,2]
[311938232,1705510282592,-502.16920952,0.00022054,2]
[311938233,1705510282612,-500.0,0.00022054,2]
[311938236,1705510282643,-500.0,0.00022054,2]
[311938237,1705510282666,-500.0,0.00022054,2]
[311938239,1705510282686,-500.0,0.00022054,2]
[311938242,1705510282718,-871.47,0.00022054,2]
[311938244,1705510282757,-1478.22,0.00022054,2]
[311938246,1705510282769,-1153.26,0.00022054,2]
[311938247,1705510282792,-500.0,0.00022054,2]
[311938249,1705510282804,-500.0,0.00022054,5]
[311938251,1705510282817,-1068.65134143,0.00022054,2]
[311938253,1705510282830,-500.0,0.00022054,2]
[311938255,1705510282840,-500.0,0.00022054,2]
[311938257,1705510282860,-500.0,0.00022054,2]
[311938259,1705510282872,-9398.56,0.00022054,2]
[311938261,1705510282890,-226.6921614,0.00022054,2]
[311938263,1705510282904,-500.0,0.00022054,2]
[311938265,1705510282930,-500.0,0.00022054,2]
[311938267,1705510282950,-500.0,0.00022054,2]
[311938269,1705510282977,-500.0,0.00022054,2]
[311938271,1705510282991,-380.81535745,0.00022054,2]
[311938273,1705510283007,-3434.58,0.00022054,2]
[311938275,1705510283018,-500.0,0.00022054,2]
[311938277,1705510283032,-500.0,0.00022054,2]
[311938280,1705510283046,-500.0,0.00022054,2]
[311938281,1705510283062,-500.0,0.00022054,2]
[311938284,1705510283076,-507.34515174,0.00022054,2]
[311938285,1705510283087,-500.0,0.00022054,2]
[311938287,1705510283118,-500.0,0.00022054,2]
[311938289,1705510283140,-486.28301242,0.00022054,2]
[311938291,1705510283152,-1145.23,0.00022054,2]
[311938293,1705510283172,-500.0,0.00022054,2]
[311938295,1705510283193,-200.0,0.00022142,7]
[311938297,1705510283213,-705.88,0.0002219,2]
[311938299,1705510283239,-705.88,0.0002219,2]
[311938302,1705510283256,-151.0,0.00022191,2]
[311938303,1705510283275,-1198.448236,0.00022191,2]
[311938305,1705510283309,-1198.448236,0.00022191,2]
[311938307,1705510283327,-303.008819,0.00022191,2]
[311938309,1705510283348,-303.008819,0.00022191,2]
[311938311,1705510283368,-500.0,0.00022191,2]
[311938313,1705510283380,-500.0,0.00022191,2]
[311938315,1705510283407,-500.0,0.00022191,2]
[311938318,1705510283421,-500.0,0.00022191,2]
[311938319,1705510283441,-500.0,0.00022191,2]
[311938322,1705510283476,-500.0,0.00022191,2]
[311938324,1705510283498,-500.0,0.00022191,2]
[311938326,1705510283525,-500.0,0.00022191,2]
[311938328,1705510283536,-500.0,0.00022191,2]
[311938330,1705510283551,-500.0,0.00022191,2]
[311938332,1705510283567,-500.0,0.00022191,2]
[311938334,1705510283585,-500.0,0.00022191,2]
[311938335,1705510283597,-500.0,0.00022191,2]
[311938338,1705510283611,-500.0,0.00022191,2]
[311938339,1705510283622,-523.15,0.00022191,2]
[311938341,1705510283639,-398.41303084,0.00022191,2]
[311938344,1705510283658,-505.28582934,0.00022191,2]
[311938346,1705510283677,-500.0,0.00022191,2]
[311938348,1705510283696,-508.23812159,0.00022191,2]
[311938350,1705510283714,-500.0,0.00022191,2]
[311938352,1705510283729,-500.0,0.00022191,2]
[311938355,1705510283741,-1637.76,0.00022191,2]
[311938357,1705510283751,-411.09169572,0.00022191,2]
[311938359,1705510283767,-500.0,0.00022191,2]
[311938361,1705510283778,-1016.46,0.00022191,2]
[311938363,1705510283791,-502.69230495,0.00022191,2]
[311938364,1705510283805,-1663.35,0.00022191,2]
[311938367,1705510283820,-500.0,0.00022191,2]
[311938369,1705510283837,-500.0,0.00022191,2]
[311938370,1705510283872,-500.0,0.00022191,2]
[311938372,1705510283896,-500.0,0.00022191,2]
[311938374,1705510283914,-500.0,0.00022191,2]
[311938376,1705510283933,-500.0,0.00022191,2]
[311938378,1705510283956,-500.0,0.00022191,2]
[311938381,1705510283974,-500.0,0.00022191,2]
[311938382,1705510283992,-500.0,0.00022191,2]
[311938384,1705510284006,-500.0,0.00022191,2]
[311938387,1705510284041,-500.0,0.00022191,2]
[311938389,1705510284061,-500.0,0.00022191,2]
[311938391,1705510284080,-619.44326316,0.00022191,2]
[311938392,1705510284095,-500.0,0.00022191,2]
[311938394,1705510284118,-500.0,0.00022191,2]
[311938396,1705510284137,-500.0,0.00022191,2]
[311938398,1705510284153,-819.68,0.00022191,2]
[311938400,1705510284174,-506.0700257,0.00022191,2]
[311938402,1705510284202,-500.0,0.00022191,2]
[311938407,1705510284217,-500.0,0.00022191,2]
[311938409,1705510284291,-500.0,0.00022191,2]
[311938411,1705510284310,-500.0,0.00022191,2]
[311938413,1705510284343,-602.09,0.00022191,2]
[311938415,1705510284357,-500.0,0.00022191,2]
[311938417,1705510284370,-500.0,0.00022191,2]
[311938419,1705510284389,-500.0,0.00022191,2]
[311938421,1705510284400,-500.0,0.00022191,2]
[311938423,1705510284413,-500.0,0.00022191,2]
[311938425,1705510284423,-500.0,0.00022191,2]
[311938427,1705510284441,-502.59,0.00022191,2]
[311938429,1705510284456,-500.0,0.00022191,2]
[311938431,1705510284493,-500.0,0.00022191,2]
[311938433,1705510284509,-500.0,0.00022191,2]
[311938435,1705510284523,-989.28,0.00022191,2]
[311938437,1705510284537,-500.0,0.00022191,2]
[311938439,1705510284549,-411.87526657,0.00022191,2]
[311938440,1705510284561,-500.0,0.00022191,2]
[311938443,1705510284573,-500.0,0.00022191,2]
[311938444,1705510284582,-519.27138741,0.00022191,2]
[311938446,1705510284592,-500.0,0.00022191,2]
[311938449,1705510284615,-4861.58,0.00022191,2]
[311938450,1705510284630,-500.0,0.00022191,2]
[311938452,1705510284639,-500.0,0.00022191,2]
[311938455,1705510284649,-478.85011104,0.00022191,2]
[311938457,1705510284662,-500.0,0.00022191,2]
[311938458,1705510284674,-215.86312279,0.00022191,2]
[311938461,1705510284688,-5653.29,0.00022191,2]
[311938463,1705510284718,-500.0,0.00022191,2]
[311938464,1705510284734,-500.0,0.00022191,2]
[311938466,1705510284750,-500.0,0.00022191,2]
[311938468,1705510284769,-1876.56,0.00022191,2]
[311938471,1705510284784,-500.0,0.00022191,2]
[311938473,1705510284823,-500.0,0.00022191,2]
[311938474,1705510284847,-504.64702003,0.00022191,2]
[311938476,1705510284868,-1844.14,0.00022191,2]
[311938478,1705510284898,-500.0,0.00022191,2]
[311938481,1705510284919,-500.0,0.00022191,2]
[311938482,1705510284942,-5568.62,0.00022191,2]
[311938484,1705510284968,-9521.58,0.00022191,2]
[311938487,1705510284978,-500.0,0.00022191,2]
[311938488,1705510285017,-500.0,0.00022191,2]
[311938490,1705510285032,-500.0,0.00022191,2]
[311938493,1705510285042,-500.0,0.00022191,2]
[311938495,1705510285057,-500.0,0.00022191,2]
[311938496,1705510285075,-1101.59,0.00022191,2]
[311938498,1705510285090,-500.0,0.00022191,2]
[311938500,1705510285134,-658.74,0.00022191,2]
[311938503,1705510285193,-500.0,0.00022191,2]
[311938505,1705510285260,-500.0,0.00022191,2]
[311938507,1705510285280,-500.0,0.00022191,2]
[311938509,1705510285298,-500.0,0.00022191,2]
[311938511,1705510285320,-882.04,0.00022191,2]
[311938513,1705510285337,-500.0,0.00022191,2]
[311938515,1705510285350,-500.0,0.00022191,2]
[311938517,1705510285364,-500.0,0.00022191,2]
[311938519,1705510285374,-1536.48,0.00022191,2]
[311938521,1705510285386,-539.08,0.00022191,2]
[311938523,1705510285398,-282.50659396,0.00022191,2]
[311938525,1705510285409,-500.0,0.00022191,2]
[311938527,1705510285419,-566.28,0.00022191,2]
[311938529,1705510285438,-500.0,0.00022191,2]
[311938531,1705510285448,-500.0,0.00022191,2]
[311938533,1705510285460,-500.0,0.00022191,2]
[311938535,1705510285474,-500.0,0.00022191,2]
[311938537,1705510285496,-500.0,0.00022191,2]
[311938539,1705510285510,-241.37531993,0.00022191,2]
[311938541,1705510285526,-500.0,0.00022191,2]
[311938543,1705510285546,-500.0,0.00022191,2]
[311938545,1705510285571,-500.0,0.00022191,2]
[311938547,1705510285583,-600.88725899,0.00022191,2]
[311938549,1705510285616,-500.0,0.00022191,2]
[311938551,1705510285632,-500.0,0.00022191,2]
[311938552,1705510285651,-500.0,0.00022191,2]
[311938555,1705510285671,-1030.74,0.00022191,2]
[311938557,1705510285686,-500.0,0.00022191,2]
[311938559,1705510285727,-500.0,0.00022191,2]
[311938561,1705510285741,-500.0,0.00022191,2]
[311938564,1705510285766,-500.0,0.00022191,2]
[311938565,1705510285798,-871.47,0.00022191,2]
[311938567,1705510285819,-1478.22,0.00022191,2]
[311938569,1705510285835,-1153.26,0.00022191,2]
[311938571,1705510285855,-500.0,0.00022191,2]
[311938574,1705510285887,-501.70820656,0.00022191,5]
[311938576,1705510285907,-500.0,0.00022191,2]
[311938578,1705510285929,-500.0,0.00022191,2]
[311938580,1705510285961,-9398.56,0.00022191,2]
[311938582,1705510285975,-500.0,0.00022191,2]
[311938584,1705510286004,-500.0,0.00022191,2]
[311938586,1705510286014,-500.0,0.00022191,2]
[311938588,1705510286045,-500.0,0.00022191,2]
[311938590,1705510286058,-3434.58,0.00022191,2]
[311938592,1705510286090,-209.73633126,0.00022191,2]
[311938595,1705510286108,-500.0,0.00022191,2]
[311938597,1705510286125,-500.0,0.00022191,2]
[311938599,1705510286141,-500.0,0.00022191,2]
[311938602,1705510286178,-500.0,0.00022191,2]
[311938604,1705510286205,-500.0,0.00022191,2]
[311938606,1705510286220,-1145.23,0.00022191,2]
[311938608,1705510286232,-501.00400068,0.00022191,2]
[311938610,1705510286242,-705.88,0.00022327,2]
[311938612,1705510286252,-705.88,0.00022327,2]
[311938614,1705510286262,-303.008819,0.00022328,2]
[311938616,1705510286275,-303.008819,0.00022328,2]
[311938617,1705510286285,-383.96915112,0.00022328,2]
[311938619,1705510286300,-500.0,0.00022328,2]
[311938621,1705510286312,-500.0,0.00022328,2]
[311938624,1705510286327,-500.0,0.00022328,2]
[311938626,1705510286340,-500.0,0.00022328,2]
[311938628,1705510286351,-500.0,0.00022328,2]
[311938629,1705510286364,-500.0,0.00022328,2]
[311938632,1705510286375,-500.0,0.00022328,2]
[311938634,1705510286388,-500.0,0.00022328,2]
[311938636,1705510286401,-523.15,0.00022328,2]
[311938637,1705510286418,-409.45702231,0.00022328,2]
[311938640,1705510286437,-500.0,0.00022328,2]
[311938642,1705510286456,-1637.76,0.00022328,2]
[311938644,1705510286483,-1016.46,0.00022328,2]
[311938648,1705510286557,-1663.35,0.00022328,2]
[311938650,1705510286581,-500.0,0.00022328,2]
[311938652,1705510286598,-500.0,0.00022328,2]
[311938654,1705510286621,-500.0,0.00022328,2]
[311938656,1705510286637,-500.0,0.00022328,2]
[311938658,1705510286658,-500.0,0.00022328,2]
[311938660,1705510286684,-500.0,0.00022328,2]
[311938662,1705510286717,-500.0,0.00022328,2]
[311938664,1705510286727,-500.0,0.00022328,2]
[311938666,1705510286755,-500.0,0.00022328,2]
[311938668,1705510286780,-500.0,0.00022328,2]
[311938670,1705510286801,-819.68,0.00022328,2]
[311938672,1705510286832,-500.0,0.00022328,2]
[311938674,1705510286870,-500.0,0.00022328,2]
[311938676,1705510286894,-375.57578081,0.00022328,2]
[311938678,1705510286912,-602.09,0.00022328,2]
[311938680,1705510286947,-500.0,0.00022328,2]
[311938682,1705510286966,-500.0,0.00022328,2]